bitfinex/quotes_SOLUSD_20220128
["timestamp","ask_amount","ask_price","bid_price","bid_amount"]
[1643411259094,0.25,90.828,90.761,0.25]
[1643411259498,0.25,90.828,90.759,0.25]
[1643411261496,17.30015665,90.829,90.759,0.25]
[1643411262700,0.25,90.828,90.759,0.25]
[1643411263702,17.30015665,90.829,90.759,0.25]
[1643411265099,0.25,90.828,90.759,0.25]
[1643411265512,0.25,90.828,90.761,1.52140624]
[1643411265901,0.25,90.828,90.762,0.25]
[1643411266823,17.30015665,90.829,90.766,1.52140624]
[1643411267023,17.30015665,90.829,90.767,1.52140624]
[1643411267223,17.30015665,90.829,90.767,4.47809766]
[1643411267423,17.30015665,90.829,90.768,3.20669142]
[1643411267722,17.30015665,90.829,90.773,109.9]
[1643411268127,17.30015665,90.829,90.774,0.25]
[1643411269324,17.30015665,90.829,90.774,1.77140624]
[1643411271626,17.30015665,90.829,90.775,1.52140624]
[1643411271826,17.30015665,90.829,90.776,0.25]
[1643411273526,17.30015665,90.829,90.776,1.77140624]
[1643411273735,17.30015665,90.829,90.776,1.52140624]
[1643411273934,17.30015665,90.829,90.777,0.25]
[1643411274335,17.30015665,90.829,90.778,1.52140624]
[1643411274737,17.30015665,90.829,90.779,0.25]
[1643411274935,17.30015665,90.829,90.777,1.52140624]
[1643411275236,17.30015665,90.829,90.778,0.25]
[1643411275946,17.30015665,90.829,90.779,2.95669142]
[1643411276336,17.30015665,90.829,90.78,0.25]
[1643411276736,17.30015665,90.829,90.781,2.95669142]
[1643411277236,17.30015665,90.829,90.782,0.25]
[1643411277635,17.30015665,90.829,90.782,3.20669142]
[1643411278439,16.525,90.85,90.782,3.20669142]
[1643411278638,49.258,90.869,90.782,3.20669142]
[1643411278938,103.16068699,90.869,90.789,1.52140624]
[1643411279138,53.90268699,90.868,90.79,1.77140624]
[1643411279338,53.90268699,90.868,90.795,1.52140624]
[1643411279540,92.70081583,90.867,90.795,1.52140624]
[1643411279739,53.90268699,90.866,90.796,3.20669142]
[1643411280140,53.90268699,90.866,90.797,2.95669142]
[1643411280339,53.90268699,90.866,90.798,0.25]
[1643411280838,53.90268699,90.866,90.799,2.95669142]
[1643411281239,53.90268699,90.866,90.8,0.25]
[1643411281639,53.90268699,90.866,90.801,2.95669142]
[1643411281837,53.90268699,90.866,90.802,0.25]
[1643411282238,53.90268699,90.866,90.803,2.95669142]
[1643411282642,53.90268699,90.866,90.804,0.25]
[1643411282842,0.25,90.865,90.804,0.25]
[1643411283039,52.0522824,90.865,90.804,0.25]
[1643411283239,51.8022824,90.864,90.804,0.25]
[1643411283645,0.25,90.863,90.804,0.25]
[1643411283842,52.0522824,90.863,90.804,0.25]
[1643411284042,0.25,90.863,90.804,0.25]
[1643411284843,0.25,90.866,90.804,0.25]
[1643411286146,0.25,90.866,90.803,2.95669142]
[1643411286344,0.25,90.866,90.793,24.7978]
[1643411286547,16.524,90.86,90.793,24.7978]
[1643411286944,0.25,90.859,90.793,24.7978]
[1643411287147,11.16,90.859,90.782,1.52140624]
[1643411287346,11.16,90.859,90.778,1.52140624]
[1643411287546,11.16,90.859,90.762,1.52140624]
[1643411287749,1.48674192,90.854,90.753,1.52140624]
[1643411288049,11.16,90.859,90.749,1.52140624]
[1643411288050,15.61,90.85,90.749,1.52140624]
[1643411288247,52.25680515,90.849,90.746,1.52140624]
[1643411288449,52.74785202,90.848,90.746,1.52140624]
[1643411288654,54.23459394,90.847,90.718,3.06791994]
[1643411288855,1.48674192,90.828,90.716,328.2055516]
[1643411289053,1.48674192,90.806,90.702,1.53165271]
[1643411289253,1.48674192,90.806,90.698,1.53165271]
[1643411289254,15.61,90.8,90.698,1.53165271]
[1643411289453,16.544,90.78,90.694,1.53165271]
[1643411289653,15.61,90.77,90.682,1.53165271]
[1643411289853,0.25,90.769,90.677,1.53165271]
[1643411290052,0.25,90.769,90.66,355.28498443]
[1643411290354,16.7952298,90.769,90.661,44.97788711]
[1643411290756,52.5925782,90.768,90.662,0.25]
[1643411290953,16.548,90.75,90.662,0.25]
[1643411291155,4.88511142,90.749,90.662,0.25]
[1643411291353,5.13511142,90.749,90.662,0.25]
[1643411292990,16.548,90.73,90.662,0.25]
[1643411293392,16.7952298,90.729,90.671,6.0]
[1643411293989,16.7952298,90.729,90.655,6.0]
[1643411294390,16.7952298,90.729,90.656,42.57437489]
[1643411294692,16.7952298,90.729,90.666,6.0]
[1643411294890,16.7952298,90.729,90.667,0.25]
[1643411295090,16.7952298,90.729,90.667,6.25]
[1643411296492,16.7952298,90.729,90.677,6.0]
[1643411297289,16.7952298,90.729,90.672,35.90908709]
[1643411297491,16.7952298,90.729,90.673,0.25]
[1643411298690,16.7952298,90.729,90.655,6.25]
[1643411299493,16.7952298,90.729,90.656,46.4035172]
[1643411300495,16.55,90.72,90.656,46.4035172]
[1643411301095,16.55,90.72,90.657,0.25]
[1643411302097,0.25,90.719,90.657,0.25]
[1643411302299,16.55,90.72,90.646,0.25]
[1643411303736,0.25,90.719,90.646,0.25]
[1643411304502,16.552,90.71,90.646,0.25]
[1643411304703,4.88511142,90.709,90.646,0.25]
[1643411305102,0.25,90.708,90.646,0.25]
[1643411305902,0.25,90.708,90.645,23.6736]
[1643411306305,0.25,90.708,90.646,46.4249467]
[1643411306707,0.25,90.708,90.646,50.79026489]
[1643411307105,24.6573,90.739,90.646,59.76026489]
[1643411307305,1.48674192,90.817,90.656,6.0]
[1643411307505,15.61,90.77,90.657,24.0988]
[1643411307702,50.62700984,90.769,90.657,24.3488]
[1643411307906,16.12132604,90.758,90.667,6.0]
[1643411308107,66.74833588,90.758,90.668,35.69620025]
[1643411308305,50.62700984,90.757,90.67,109.9]
[1643411308703,50.62700984,90.757,90.671,0.25]
[1643411309106,16.545,90.75,90.671,0.25]
[1643411309705,16.545,90.75,90.672,4.36531819]
[1643411309904,16.545,90.75,90.673,0.25]
[1643411312107,0.25,90.749,90.673,0.25]
[1643411312709,0.25,90.749,90.674,4.36531819]
[1643411312910,0.25,90.749,90.675,0.25]
[1643411313110,16.546,90.74,90.675,0.25]
[1643411313312,5.55901518,90.739,90.675,0.25]
[1643411314309,5.30901518,90.739,90.675,0.25]
[1643411316011,5.30901518,90.739,90.676,4.36531819]
[1643411316514,5.30901518,90.739,90.677,0.25]
[1643411316714,0.25,90.738,90.677,0.25]
[1643411317915,0.25,90.738,90.686,1.53165271]
[1643411318315,0.25,90.738,90.687,1.53165271]
[1643411318519,16.548,90.73,90.687,1.53165271]
[1643411318745,16.548,90.73,90.686,1.53165271]
[1643411318942,16.548,90.73,90.688,4.36531819]
[1643411320543,0.25,90.738,90.688,4.36531819]
[1643411322354,0.25,90.738,90.683,1.53165271]
[1643411322854,0.25,90.738,90.681,1.53165271]
[1643411323249,0.25,90.738,90.682,0.25]
[1643411324058,16.547,90.73,90.682,0.25]
[1643411324250,0.25,90.729,90.68,1.53165271]
[1643411324448,0.25,90.729,90.681,1.53165271]
[1643411324649,0.25,90.729,90.683,1.53165271]
[1643411324852,0.25,90.729,90.679,0.25]
[1643411324853,16.547,90.73,90.685,1.53165271]
[1643411325250,16.547,90.73,90.686,0.25]
[1643411325450,16.547,90.73,90.686,4.61531819]
[1643411326753,0.25,90.729,90.686,4.61531819]
[1643411327955,5.30901518,90.739,90.686,4.61531819]
[1643411328454,0.25,90.738,90.686,4.61531819]
[1643411329060,16.547,90.73,90.64,113.7]
[1643411329260,0.25,90.729,90.629,4.53189937]
[1643411329460,46.6662,90.729,90.641,1.53326509]
[1643411329660,66.56885955,90.729,90.641,1.53326509]
[1643411329859,1.48674192,90.723,90.62,1.53326509]
[1643411330062,15.61,90.71,90.606,1.53326509]
[1643411330260,16.558,90.7,90.621,36.25414931]
[1643411330658,0.25,90.699,90.622,0.25]
[1643411330858,0.25,90.699,90.631,6.0]
[1643411331258,0.25,90.699,90.632,0.25]
[1643411331460,0.25,90.699,90.632,6.25]
[1643411331859,0.25,90.699,90.633,109.9]
[1643411332060,0.25,90.699,90.643,6.0]
[1643411332558,0.25,90.699,90.652,6.0]
[1643411332760,0.25,90.699,90.632,0.25]
[1643411333160,0.25,90.699,90.632,6.0]
[1643411333459,16.556,90.69,90.632,6.0]
[1643411333859,0.25,90.689,90.632,6.0]
[1643411334260,0.25,90.689,90.633,0.25]
[1643411335261,16.557,90.68,90.632,6.0]
[1643411335660,0.25,90.679,90.617,6.0]
[1643411335860,23.4877,90.679,90.618,0.25]
[1643411336860,23.4877,90.679,90.607,0.25]
[1643411337664,16.558,90.67,90.607,0.25]
[1643411337862,0.25,90.669,90.607,0.25]
[1643411342867,16.56,90.66,90.605,0.25]
[1643411343267,0.25,90.659,90.605,0.25]
[1643411343467,0.25,90.659,90.603,6.0]
[1643411344269,16.562,90.65,90.603,6.0]
[1643411344669,0.25,90.649,90.603,6.0]
[1643411345072,0.25,90.649,90.591,3.06142261]
[1643411345868,16.564,90.64,90.591,3.06142261]
[1643411346269,0.25,90.639,90.591,3.06142261]
[1643411347072,16.567,90.63,90.591,3.06142261]
[1643411347373,0.25,90.629,90.591,3.06142261]
[1643411348071,0.25,90.629,90.591,1.61895946]
[1643411348278,16.57,90.62,90.55,46.5453]
[1643411348672,0.25,90.619,90.55,46.5453]
[1643411348871,25.166,90.629,90.55,46.5453]
[1643411349271,25.166,90.629,90.504,1.53326509]
[1643411349476,16.573,90.6,90.538,0.25]
[1643411349677,0.25,90.599,90.528,6.0]
[1643411350282,0.25,90.599,90.511,6.0]
[1643411350483,0.25,90.599,90.501,48.865]
[1643411350681,24.7789,90.599,90.502,109.9]
[1643411351080,24.7789,90.599,90.503,0.25]
[1643411351484,24.7789,90.599,90.503,43.74147978]
[1643411352084,16.576,90.58,90.503,43.74147978]
[1643411352285,0.25,90.579,90.503,43.74147978]
[1643411352698,0.25,90.579,90.504,109.9]
[1643411352903,0.25,90.579,90.504,110.15]
[1643411353699,16.578,90.57,90.504,110.15]
[1643411353900,0.25,90.569,90.504,110.15]
[1643411354101,0.25,90.569,90.515,109.9]
[1643411354300,0.25,90.569,90.516,0.25]
[1643411356300,0.25,90.569,90.504,0.25]
[1643411359308,0.25,90.589,90.504,0.25]
[1643411359508,0.25,90.589,90.513,6.0]
[1643411359708,0.25,90.597,90.514,23.6835]
[1643411359909,0.25,90.597,90.514,23.9335]
[1643411360108,0.25,90.597,90.514,23.6835]
[1643411360312,0.25,90.597,90.515,0.25]
[1643411361010,16.575,90.58,90.515,0.25]
[1643411361410,0.25,90.579,90.515,0.25]
[1643411362815,0.25,90.597,90.515,0.25]
[1643411363014,16.577,90.57,90.515,0.25]
[1643411363418,0.25,90.569,90.515,0.25]
[1643411368724,16.573,90.59,90.515,0.25]
[1643411368926,55.235,90.63,90.532,0.31773352]
[1643411369124,15.61,90.67,90.532,0.31773352]
[1643411369326,1.48674192,90.675,90.561,0.30174965]
[1643411369523,15.61,90.68,90.561,11.23174965]
[1643411369722,15.61,90.68,90.562,82.21842045]
[1643411369923,15.61,90.68,90.571,6.0]
[1643411370122,15.61,90.68,90.573,109.9]
[1643411370323,15.61,90.68,90.574,0.25]
[1643411370623,32.169,90.68,90.583,6.0]
[1643411370823,32.169,90.68,90.584,56.53793753]
[1643411371027,32.169,90.68,90.585,6.0]
[1643411371256,32.169,90.68,90.584,59.24462895]
[1643411371423,32.169,90.68,90.586,0.25]
[1643411371923,0.25,90.679,90.586,0.25]
[1643411372124,16.56,90.66,90.586,0.25]
[1643411372324,0.25,90.659,90.586,0.25]
[1643411372524,0.25,90.659,90.585,0.25]
[1643411372924,0.25,90.659,90.585,113.10669142]
[1643411373326,0.25,90.659,90.595,6.0]
[1643411373727,0.25,90.659,90.596,0.25]
[1643411375731,0.25,90.659,90.595,6.0]
[1643411376134,0.25,90.679,90.596,25.1901]
[1643411376532,0.25,90.679,90.597,109.9]
[1643411376733,0.25,90.679,90.598,37.3978463]
[1643411376933,0.25,90.679,90.599,109.9]
[1643411377131,16.558,90.67,90.599,109.9]
[1643411377332,0.25,90.669,90.6,0.25]
[1643411378333,16.56,90.66,90.599,0.25]
[1643411378755,0.25,90.659,90.599,0.25]
[1643411380860,0.25,90.659,90.596,24.9401]
[1643411381058,16.563,90.65,90.56,17.14326509]
[1643411381259,0.25,90.649,90.572,6.0]
[1643411381463,0.25,90.649,90.57,6.0]
[1643411381657,0.25,90.649,90.545,1.53326509]
[1643411381857,0.25,90.649,90.546,38.38282549]
[1643411382258,16.566,90.63,90.547,109.9]
[1643411382460,16.566,90.63,90.547,133.6681]
[1643411382660,0.25,90.629,90.548,0.25]
[1643411383063,0.25,90.629,90.557,6.0]
[1643411383264,0.25,90.629,90.558,0.25]
[1643411383861,0.25,90.629,90.558,24.5522]
[1643411384262,0.25,90.629,90.559,109.9]
[1643411384464,0.25,90.629,90.56,36.85418872]
[1643411384763,0.25,90.629,90.56,37.10418872]
[1643411385165,0.25,90.629,90.558,24.3022]
[1643411385563,16.568,90.62,90.558,24.3022]
[1643411385763,0.25,90.619,90.559,0.25]
[1643411388974,0.25,90.619,90.541,109.9]
[1643411389176,0.25,90.619,90.542,22.5267]
[1643411389377,0.25,90.619,90.543,36.27104564]
[1643411389878,0.25,90.619,90.544,0.25]
[1643411390073,0.25,90.619,90.544,113.10669142]
[1643411390275,0.25,90.619,90.545,2.95669142]
[1643411390675,0.25,90.619,90.546,0.25]
[1643411390874,0.25,90.619,90.544,110.15]
[1643411391074,16.568,90.62,90.544,110.15]
[1643411391475,16.568,90.62,90.546,109.9]
[1643411391682,16.568,90.62,90.547,1.53326509]
[1643411391877,16.568,90.62,90.547,1.78326509]
[1643411392081,16.568,90.62,90.55,1.53326509]
[1643411392284,16.568,90.62,90.551,0.25]
[1643411392578,16.568,90.62,90.554,1.53326509]
[1643411392777,16.568,90.62,90.555,1.78326509]
[1643411392977,16.568,90.62,90.557,1.53326509]
[1643411393380,16.565,90.64,90.558,0.25]
[1643411393580,16.565,90.64,90.558,3.20669142]
[1643411393779,16.565,90.64,90.56,109.9]
[1643411394183,16.565,90.64,90.561,3.20669142]
[1643411394583,16.565,90.64,90.562,4.48995651]
[1643411394783,16.565,90.64,90.563,0.25]
[1643411394983,16.565,90.64,90.563,3.20669142]
[1643411395182,0.25,90.639,90.564,2.95669142]
[1643411395383,0.25,90.639,90.565,0.25]
[1643411395783,0.25,90.639,90.566,2.95669142]
[1643411395984,0.25,90.639,90.576,6.0]
[1643411396288,0.25,90.639,90.577,0.25]
[1643411396488,16.566,90.63,90.577,2.95669142]
[1643411396788,27.726,90.63,90.577,0.25]
[1643411397385,27.726,90.63,90.578,2.95669142]
[1643411397784,27.726,90.63,90.579,0.25]
[1643411398283,27.726,90.63,90.579,3.20669142]
[1643411398485,11.16,90.63,90.579,3.20669142]
[1643411398683,70.817,90.67,90.579,3.20669142]
[1643411398884,0.25,90.669,90.579,3.20669142]
[1643411399884,0.25,90.669,90.579,4.73995651]
[1643411400287,16.56,90.66,90.579,4.73995651]
[1643411400486,16.56,90.66,90.58,1.53326509]
[1643411400686,0.25,90.659,90.579,4.73995651]
[1643411400885,0.25,90.659,90.589,6.0]
[1643411401087,0.25,90.659,90.59,23.8349]
[1643411401308,0.25,90.659,90.558,2.95669142]
[1643411401309,16.562,90.65,90.558,2.95669142]
[1643411401494,15.61,90.64,90.547,1.53394737]
[1643411401690,15.61,90.63,90.536,1.53394737]
[1643411401891,47.3895,90.629,90.531,1.53394737]
[1643411402091,67.81285206,90.629,90.522,1.53394737]
[1643411402288,1.48674192,90.624,90.517,1.53394737]
[1643411402488,15.61,90.61,90.517,1.53394737]
[1643411402788,15.61,90.6,90.507,1.53394737]
[1643411402989,16.578,90.58,90.505,1.53394737]
[1643411403188,41.328,90.58,90.505,1.53394737]
[1643411403388,41.328,90.58,90.501,1.53394737]
[1643411403389,0.25,90.579,90.501,1.53394737]
[1643411403590,0.25,90.579,90.499,1.53394737]
[1643411403789,0.25,90.579,90.5,0.25]
[1643411403990,0.25,90.579,90.496,0.25]
[1643411404190,16.578,90.56,90.496,0.25]
[1643411404492,0.25,90.559,90.496,0.25]
[1643411404889,0.25,90.559,90.495,47.5427]
[1643411405490,0.25,90.559,90.486,38.99932402]
[1643411405689,16.581,90.55,90.496,6.0]
[1643411405896,0.25,90.549,90.496,6.0]
[1643411406093,0.25,90.549,90.49,6.0]
[1643411406999,16.583,90.54,90.49,6.0]
[1643411407194,30.173,90.54,90.49,6.0]
[1643411407395,0.25,90.539,90.49,6.0]
[1643411407698,0.25,90.539,90.491,0.25]
[1643411407895,0.25,90.539,90.491,36.97828384]
[1643411408096,0.25,90.539,90.501,6.0]
[1643411408497,6.0,90.53,90.501,6.0]
[1643411408999,0.25,90.529,90.501,6.0]
[1643411409398,0.25,90.529,90.491,0.25]
[1643411409601,0.25,90.529,90.49,6.0]
[1643411409800,0.25,90.529,90.491,0.25]
[1643411410199,0.25,90.529,90.491,44.04250439]
[1643411410400,22.6924,90.579,90.501,6.0]
[1643411410602,15.61,90.59,90.502,109.9]
[1643411410804,15.61,90.59,90.502,110.15]
[1643411411902,0.25,90.589,90.502,110.15]
[1643411412523,6.0,90.58,90.502,110.15]
[1643411412927,0.25,90.579,90.502,110.15]
[1643411413224,22.577,90.57,90.512,6.0]
[1643411413626,0.25,90.569,90.513,0.25]
[1643411414728,0.25,90.569,90.507,0.25]
[1643411415728,6.0,90.57,90.507,0.25]
[1643411416028,6.0,90.58,90.507,0.25]
[1643411416626,6.0,90.58,90.505,43.47350223]
[1643411416831,22.575,90.58,90.505,43.47350223]
[1643411417029,16.575,90.58,90.505,43.47350223]
[1643411417233,16.575,90.58,90.506,109.9]
[1643411417429,0.25,90.579,90.506,109.9]
[1643411418032,16.577,90.57,90.474,24.4892]
[1643411418233,16.577,90.57,90.502,6.0]
[1643411418439,0.25,90.569,90.502,6.0]
[1643411419433,0.25,90.569,90.503,0.25]
[1643411420033,0.25,90.569,90.503,6.25]
[1643411421337,16.327,90.57,90.503,6.25]
[1643411421535,16.327,90.57,90.507,6.0]
[1643411421938,16.327,90.57,90.508,0.25]
[1643411422136,16.327,90.57,90.503,0.25]
[1643411423137,16.327,90.57,90.499,0.25]
[1643411423336,0.25,90.569,90.509,109.9]
[1643411423538,11.16,90.569,90.509,109.9]
[1643411423740,11.16,90.569,90.51,0.25]
[1643411427241,11.16,90.569,90.509,109.9]
[1643411429745,11.16,90.569,90.51,0.25]
[1643411430746,10.91,90.569,90.51,0.25]
[1643411431050,16.327,90.57,90.505,1.78394737]
[1643411431273,16.327,90.57,90.507,1.53394737]
[1643411431647,16.327,90.57,90.508,0.25]
[1643411432050,16.327,90.57,90.517,109.9]
[1643411432349,0.25,90.569,90.518,0.25]
[1643411432753,16.578,90.56,90.518,0.25]
[1643411432950,0.25,90.569,90.518,0.25]
[1643411433349,0.25,90.589,90.518,0.25]
[1643411433550,0.25,90.589,90.509,0.25]
[1643411433750,16.575,90.58,90.509,1.78394737]
[1643411433948,16.575,90.58,90.502,6.0]
[1643411433949,16.575,90.58,90.508,1.53394737]
[1643411434149,0.25,90.579,90.507,1.53394737]
[1643411434358,0.25,90.579,90.508,0.25]
[1643411434952,16.577,90.57,90.508,0.25]
[1643411435352,0.25,90.569,90.508,0.25]
[1643411435550,0.25,90.569,90.505,1.53394737]
[1643411435551,6.0,90.56,90.505,1.53394737]
[1643411435753,0.25,90.559,90.504,1.53394737]
[1643411436052,0.25,90.559,90.502,6.0]
[1643411436353,6.0,90.55,90.503,0.25]
[1643411436553,0.25,90.559,90.504,6.0]
[1643411436753,0.25,90.559,90.503,0.25]
[1643411437052,16.581,90.55,90.503,0.25]
[1643411437252,0.25,90.549,90.494,1.53394737]
[1643411437758,0.25,90.549,90.493,1.53394737]
[1643411437952,0.25,90.549,90.493,0.25]
[1643411438151,0.25,90.549,90.493,1.78394737]
[1643411439656,0.25,90.549,90.494,1.53394737]
[1643411439959,0.25,90.549,90.493,0.25]
[1643411442460,16.581,90.55,90.493,0.25]
[1643411442666,6.0,90.54,90.502,6.0]
[1643411442867,6.0,90.54,90.503,0.25]
[1643411443065,16.581,90.55,90.503,0.25]
[1643411444165,16.581,90.55,90.499,1.53394737]
[1643411444365,16.581,90.55,90.504,10.51061123]
[1643411444768,16.581,90.55,90.514,6.0]
[1643411444968,16.581,90.55,90.505,0.25]
[1643411445370,0.25,90.549,90.505,0.25]
[1643411445570,0.25,90.549,90.504,10.51061123]
[1643411445968,16.581,90.55,90.504,10.51061123]
[1643411446403,0.25,90.549,90.504,10.51061123]
[1643411446599,16.581,90.55,90.504,10.51061123]
[1643411446801,0.25,90.549,90.504,10.51061123]
[1643411447404,0.25,90.549,90.498,1.53394737]
[1643411447605,0.25,90.549,90.498,0.25]
[1643411448011,0.25,90.549,90.504,6.0]
[1643411448207,0.001,90.55,90.504,6.0]
[1643411448409,0.001,90.55,90.522,0.32033611]
[1643411448608,1.48674192,90.603,90.522,0.32033611]
[1643411448809,16.57,90.61,90.522,11.68033611]
[1643411449010,16.57,90.61,90.547,0.3022011]
[1643411449413,1.48674192,90.63,90.547,0.3022011]
[1643411449608,1.48674192,90.635,90.548,34.50777131]
[1643411449811,1.48674192,90.641,90.558,6.0]
[1643411450038,16.563,90.65,90.57,0.31817288]
[1643411450039,18.04974192,90.65,90.57,0.31817288]
[1643411450242,1.48674192,90.649,90.571,38.49359874]
[1643411450442,6.0,90.64,90.571,38.49359874]
[1643411450645,1.48674192,90.65,90.572,0.25]
[1643411450940,1.48674192,90.651,90.572,0.25]
[1643411451342,0.25,90.65,90.572,0.25]
[1643411451741,0.25,90.652,90.572,0.25]
[1643411452740,0.25,90.652,90.572,110.15]
[1643411453540,0.25,90.652,90.573,10.51061123]
[1643411453839,1.48674192,90.672,90.574,110.15]
[1643411454044,16.557,90.68,90.584,6.30524284]
[1643411454248,16.557,90.68,90.585,67.43749148]
[1643411454541,6.0,90.67,90.595,6.0]
[1643411454742,19.57,90.67,90.573,10.51061123]
[1643411454947,36.128,90.67,90.573,10.51061123]
[1643411455143,1.48674192,90.666,90.573,10.51061123]
[1643411455344,0.25,90.665,90.573,10.51061123]
[1643411455547,1.48674192,90.658,90.573,10.51061123]
[1643411455745,23.1649,90.665,90.573,10.51061123]
[1643411455746,15.61,90.65,90.573,10.51061123]
[1643411456145,0.25,90.649,90.573,10.51061123]
[1643411456342,1.58727314,90.649,90.573,10.51061123]
[1643411456545,0.25,90.649,90.558,109.9]
[1643411456844,1.33727314,90.648,90.558,109.9]
[1643411457242,0.25,90.647,90.558,109.9]
[1643411458047,16.568,90.63,90.558,109.9]
[1643411458250,0.25,90.629,90.558,109.9]
[1643411458446,6.0,90.62,90.558,109.9]
[1643411458645,0.25,90.629,90.558,109.9]
[1643411459247,0.25,90.629,90.559,0.25]
[1643411460049,16.567,90.62,90.559,0.25]
[1643411460248,0.25,90.619,90.559,10.76061123]
[1643411460854,16.567,90.62,90.559,10.51061123]
[1643411461451,32.177,90.62,90.559,10.51061123]
[1643411462355,16.573,90.61,90.559,10.51061123]
[1643411462552,15.61,90.6,90.559,10.51061123]
[1643411462755,15.61,90.6,90.517,10.51061123]
[1643411463052,0.25,90.599,90.517,10.51061123]
[1643411464058,16.576,90.59,90.517,10.51061123]
[1643411464257,0.25,90.589,90.517,10.51061123]
[1643411464656,0.25,90.589,90.518,0.25]
[1643411465460,6.0,90.58,90.518,0.25]
[1643411465757,0.25,90.579,90.519,10.51061123]
[1643411466160,0.25,90.579,90.52,0.25]
[1643411467659,23.8951,90.599,90.52,0.25]
[1643411467859,23.8951,90.599,90.529,6.0]
[1643411468259,23.8951,90.599,90.53,0.25]
[1643411468462,15.61,90.6,90.53,40.92512535]
[1643411468884,0.25,90.599,90.531,10.51061123]
[1643411469084,0.25,90.599,90.531,16.51061123]
[1643411469285,0.25,90.609,90.54,6.0]
[1643411469486,6.0,90.61,90.541,6.0]
[1643411469686,22.57,90.61,90.542,109.9]
[1643411469884,22.57,90.61,90.543,0.25]
[1643411471287,16.57,90.61,90.543,0.25]
[1643411471688,16.57,90.61,90.542,115.9]
[1643411472289,0.25,90.609,90.544,109.9]
[1643411472888,0.25,90.609,90.545,0.25]
[1643411473694,0.25,90.609,90.544,0.25]
[1643411473890,0.25,90.609,90.544,110.15]
[1643411474093,24.2199,90.629,90.544,110.15]
[1643411474290,0.25,90.628,90.544,110.15]
[1643411474491,53.49294297,90.628,90.544,110.15]
[1643411475191,16.568,90.62,90.544,110.15]
[1643411475391,0.25,90.619,90.545,33.62951123]
[1643411475591,53.49294297,90.619,90.545,33.62951123]
[1643411475792,53.49294297,90.619,90.546,0.25]
[1643411476194,53.49294297,90.619,90.546,110.15]
[1643411476792,0.25,90.619,90.546,110.15]
[1643411477194,0.25,90.628,90.546,110.15]
[1643411477393,0.25,90.639,90.546,110.15]
[1643411478392,0.25,90.639,90.547,10.51061123]
[1643411478593,0.25,90.639,90.548,109.9]
[1643411478796,0.25,90.639,90.548,110.15]
[1643411478996,0.25,90.639,90.549,24.5474]
[1643411479395,0.25,90.639,90.551,36.13921217]
[1643411479797,0.25,90.646,90.552,0.25]
[1643411479996,52.75852899,90.646,90.552,0.25]
[1643411480398,0.25,90.646,90.552,0.25]